bitfinex-derivatives/quotes_SOLF0:USTF0_20250808
["timestamp","ask_amount","ask_price","bid_price","bid_amount"]
[1754664428285,0.03919781,176.69,176.67,5.6595]
[1754664428490,0.03919781,176.69,176.67,112.84]
[1754664428780,0.03919781,176.69,176.68,5.6592]
[1754664428988,3.3,176.68,176.67,112.84]
[1754664429178,6.31789751,176.68,176.67,112.84]
[1754664429376,0.03919781,176.69,176.68,5.6592]
[1754664429579,3.3,176.68,176.67,112.84]
[1754664429777,6.31789751,176.68,176.67,112.84]
[1754664430382,6.31789751,176.68,176.65,5.6601]
[1754664430585,3.3,176.66,176.64,119.41653905]
[1754664430778,3.01789751,176.68,176.64,119.41653905]
[1754664430983,3.3,176.67,176.65,12.23444148]
[1754664431183,9.751e-05,176.68,176.65,6.57454148]
[1754664431388,0.03919781,176.69,176.67,6.57454148]
[1754664431389,9.532e-05,176.69,176.67,6.57454148]
[1754664431587,9.532e-05,176.69,176.68,118.3592]
[1754664432391,3.30009532,176.69,176.68,112.7]
[1754664434087,3.30009532,176.69,176.64,0.04199757]
[1754664434292,3.30009532,176.69,176.64,112.62199757]
[1754664434586,5.6602,176.65,176.64,0.04199757]
[1754664434791,5.6602,176.65,176.54,380.3]
[1754664434792,3.3,176.65,176.6,112.62]
[1754664435198,6.16676006,176.69,176.63,6.57454148]
[1754664435391,3.3,176.68,176.63,6.57454148]
[1754664435592,3.3,176.68,176.62,6.57454148]
[1754664435787,9.46676006,176.67,176.6,112.62]
[1754664435993,3.3,176.65,176.6,112.62]
[1754664436189,3.3,176.63,176.58,6.57454148]
[1754664436494,7.23958757,176.62,176.58,112.7]
[1754664436689,3.93958757,176.61,176.58,118.3623]
[1754664436889,7.23958757,176.6,176.58,119.27454148]
[1754664437198,3.93958757,176.59,176.58,119.27454148]
[1754664437396,7.23958757,176.59,176.58,112.7]
[1754664438792,3.3,176.58,176.57,0.03797511]
[1754664438994,7.23958757,176.58,176.57,0.03797511]
[1754664439591,12.90198757,176.58,176.57,0.03797511]
[1754664439790,3.3,176.57,176.49,6.57454148]
[1754664439996,3.93958757,176.56,176.5,112.62]
[1754664440191,3.93958757,176.55,176.5,112.62]
[1754664440392,3.3,176.53,176.5,112.62]
[1754664440693,3.93958757,176.52,176.5,112.62]
[1754664440896,3.93958757,176.51,176.5,112.62]
[1754664441694,3.93958757,176.51,176.5,118.285]
[1754664442192,3.3,176.63,176.52,6.57454148]
[1754664442399,5.6601,176.66,176.59,6.57454148]
[1754664442400,3.3,176.62,176.59,6.57454148]
[1754664442595,3.3,176.65,176.57,6.57454148]
[1754664442800,3.3,176.65,176.44,387.01454148]
[1754664442801,5.6605,176.64,176.56,5.6627]
[1754664443096,3.3,176.63,176.57,113.02]
[1754664443295,3.14974422,176.62,176.57,118.6825]
[1754664443495,3.3,176.6,176.57,119.59454148]
[1754664443895,0.03776448,176.62,176.59,6.57454148]
[1754664444095,3.3,176.61,176.59,6.57454148]
[1754664444294,3.3,176.6,176.59,6.57454148]
[1754664444492,3.3,176.59,176.57,119.59454148]
[1754664444707,3.3,176.58,176.57,113.02]
[1754664445002,3.3,176.6,176.57,113.02]
[1754664445196,0.03776448,176.62,176.57,113.02]
[1754664445404,3.3,176.61,176.57,113.02]
[1754664445608,3.3,176.59,176.56,113.0]
[1754664446195,3.14974422,176.59,176.56,113.0]
[1754664446398,3.3,176.57,176.56,113.0]
[1754664447595,3.3,176.57,176.55,0.03652592]
[1754664447906,3.3,176.56,176.55,0.03652592]
[1754664448203,3.3,176.55,176.45,235.03]
[1754664448396,0.04132426,176.58,176.49,0.03]
[1754664448397,3.14974422,176.54,176.49,0.03]
[1754664448606,6.44974422,176.57,176.53,10.03725792]
[1754664448798,9.34181528,176.64,176.53,10.03725792]
[1754664448799,3.3,176.59,176.53,123.10725792]
[1754664448998,3.3,176.56,176.53,123.10725792]
[1754664449206,3.3,176.55,176.53,123.10725792]
[1754664449706,3.3,176.54,176.5,113.5]
[1754664449907,3.3,176.54,176.48,10.00725792]
[1754664449908,3.3,176.53,176.51,113.48]
[1754664450104,3.3,176.52,176.51,113.48]
[1754664451514,3.14974422,176.54,176.51,113.51]
[1754664451704,0.04307105,176.56,176.53,0.03]
[1754664452105,0.04307105,176.56,176.53,10.00725792]
[1754664452412,0.01307105,176.56,176.54,0.03]
[1754664452611,0.01307105,176.56,176.55,113.52]
[1754664452813,0.01307105,176.56,176.55,119.1834]
[1754664453205,3.3,176.64,176.55,113.52]
[1754664453407,3.3,176.63,176.59,10.00725792]
[1754664453612,3.3,176.66,176.6,113.48]
[1754664453812,6.44974422,176.65,176.6,113.48]
[1754664454012,3.3,176.65,176.61,5.6614]
[1754664454216,3.3,176.64,176.61,5.6614]
[1754664454407,3.3,176.64,176.6,113.48]
[1754664454606,3.3,176.66,176.6,113.48]
[1754664454810,6.16676006,176.7,176.6,113.48]
[1754664454811,6.44974422,176.65,176.6,113.48]
[1754664455012,3.3,176.65,176.6,113.48]
[1754664455216,3.3,176.64,176.6,113.48]
[1754664455417,3.3,176.66,176.61,10.00725792]
[1754664455716,3.3,176.65,176.61,10.00725792]
[1754664455915,3.14974422,176.69,176.64,10.00725792]
[1754664456114,6.27974422,176.7,176.67,10.00725792]
[1754664456315,3.14974422,176.74,176.67,10.00725792]
[1754664456515,3.14974422,176.73,176.65,113.3]
[1754664456711,6.27974422,176.77,176.7,10.00725792]
[1754664456912,3.14974422,176.76,176.71,113.34]
[1754664457215,3.13,176.74,176.71,113.34]
[1754664457407,3.13,176.72,176.71,113.34]
[1754664457912,3.14974422,176.72,176.68,123.32725792]
[1754664458107,3.15035495,176.71,176.7,0.03738507]
[1754664458307,3.15035495,176.74,176.7,0.03738507]
[1754664458509,3.13,176.72,176.7,0.03738507]
[1754664458717,3.15035495,176.71,176.7,0.03738507]
[1754664458919,6.28035495,176.71,176.7,0.03738507]
[1754664459121,3.13,176.7,176.52,10.00725792]
[1754664459415,3.13,176.68,176.6,10.00725792]
[1754664459619,6.28035495,176.68,176.64,5.6602]
[1754664459821,3.13,176.69,176.65,113.3]
[1754664460017,3.13,176.71,176.66,10.00725792]
[1754664460216,3.15035495,176.72,176.66,10.00725792]
[1754664460422,3.15035495,176.71,176.69,10.00725792]
[1754664460621,3.13,176.74,176.7,113.32]
[1754664460817,3.16827702,176.71,176.7,113.32]
[1754664461120,6.31863197,176.71,176.7,113.32]
[1754664461424,10.09918891,176.71,176.7,113.32]
[1754664461925,6.96918891,176.71,176.66,15.66705792]
[1754664462124,10.09918891,176.7,176.69,113.3]
[1754664463024,6.96918891,176.7,176.69,113.3]
[1754664463320,3.81883396,176.7,176.69,113.3]
[1754664463519,10.09918891,176.7,176.69,113.3]
[1754664463716,6.96918891,176.7,176.69,113.3]
[1754664464023,3.81883396,176.7,176.69,113.3]
[1754664464221,6.96918891,176.7,176.69,113.3]
[1754664464418,3.81883396,176.7,176.69,113.3]
[1754664464623,10.09918891,176.7,176.69,113.3]
[1754664465122,3.81883396,176.7,176.69,113.3]
[1754664465323,6.96918891,176.7,176.67,10.00725792]
[1754664465523,10.09918891,176.69,176.68,113.22]
[1754664466024,10.09918891,176.69,176.65,10.00725792]
[1754664466224,3.13,176.69,176.68,113.22]
[1754664466426,10.11234776,176.69,176.68,113.22]
[1754664467424,10.11234776,176.69,176.63,6.57879641]
[1754664467630,3.13,176.66,176.64,113.1]
[1754664467830,10.11234776,176.65,176.63,6.57879641]
[1754664468032,3.13,176.65,176.64,113.1]
[1754664468229,6.94838878,176.65,176.64,113.1]
[1754664468531,6.94838878,176.65,176.63,6.57879641]
[1754664468721,3.13,176.63,176.56,380.6]
[1754664468923,3.13,176.63,176.57,113.04]
[1754664468924,6.97577072,176.62,176.57,113.04]
[1754664469229,6.97577072,176.61,176.57,113.04]
[1754664469425,6.97577072,176.6,176.58,6.57879641]
[1754664469626,3.81838878,176.59,176.58,6.57879641]
[1754664470021,6.97577072,176.59,176.58,113.06]
[1754664470222,19.21456713,176.59,176.44,386.97879641]
[1754664470423,6.97577072,176.58,176.49,6.57879641]
[1754664470631,3.13,176.56,176.5,113.16]
[1754664470828,3.13,176.54,176.5,113.16]
[1754664471131,6.97577072,176.53,176.5,113.16]
[1754664471333,3.13,176.51,176.5,113.16]
[1754664471627,6.97577072,176.51,176.5,119.73879641]
[1754664471824,3.81838878,176.51,176.5,119.73879641]
[1754664472025,3.73848378,176.51,176.5,125.40379641]
[1754664472230,0.03654468,176.55,176.5,119.73879641]
[1754664472426,3.15738194,176.56,176.53,6.57879641]
[1754664472629,3.13,176.61,176.57,6.57879641]
[1754664472823,3.13,176.61,176.58,113.42]
[1754664473131,3.13,176.65,176.58,113.42]
[1754664473932,3.13,176.63,176.44,386.97879641]
[1754664474129,3.13,176.62,176.54,6.57879641]
[1754664474332,15.87555647,176.62,176.55,113.54]
[1754664474525,3.13,176.61,176.52,6.57879641]
[1754664474724,7.75203822,176.59,176.53,113.52]
[1754664474926,3.13,176.58,176.54,113.52]
[1754664475123,5.6629,176.57,176.5,12.24349641]
[1754664475429,5.6629,176.57,176.51,113.5]
[1754664475630,3.13,176.54,176.51,113.5]
[1754664475834,3.13,176.53,176.51,113.5]
[1754664476229,3.13,176.53,176.51,119.1646]
[1754664476729,4.62203822,176.59,176.53,5.664]
[1754664476929,3.13,176.56,176.53,5.664]
[1754664477129,4.62203822,176.6,176.51,113.5]
[1754664477337,0.03766903,176.58,176.57,5.6627]
[1754664477637,0.03766903,176.58,176.57,119.2027]
[1754664478230,3.16766903,176.58,176.48,235.0]
[1754664478541,0.03766903,176.58,176.54,6.57879641]
[1754664478734,3.13,176.56,176.55,113.46]
[1754664478932,3.13,176.58,176.55,119.1232]
[1754664479132,4.62203822,176.62,176.55,119.1232]
[1754664479338,3.13,176.57,176.55,119.1232]
[1754664479836,3.13,176.57,176.56,12.24179641]
[1754664480036,3.13,176.57,176.56,6.57879641]
[1754664480232,0.03598097,176.6,176.54,6.57879641]
[1754664480538,3.13,176.59,176.55,113.44]
[1754664480840,3.13,176.58,176.55,113.44]
[1754664481041,4.62203822,176.62,176.55,113.44]
[1754664481339,3.13,176.57,176.56,6.57879641]
[1754664481643,3.13,176.54,176.52,6.57879641]
[1754664481940,3.13,176.54,176.44,398.31249641]
[1754664481941,3.13,176.54,176.44,380.4]
[1754664482238,3.13,176.54,176.47,6.57879641]
[1754664482832,7.75203822,176.54,176.45,113.46]
[1754664483033,3.13,176.53,176.46,6.57879641]
[1754664483428,3.13,176.53,176.45,113.46]
[1754664483634,8.7941,176.53,176.46,6.57879641]
[1754664483836,3.13,176.52,176.46,6.57879641]
[1754664484136,3.13,176.52,176.47,5.6659]
[1754664484340,7.03830725,176.51,176.47,12.2883407]
[1754664484538,3.90830725,176.5,176.47,12.2883407]
[1754664484735,3.90830725,176.5,176.47,6.6224407]
[1754664484932,3.90830725,176.49,176.47,0.04364429]
[1754664485435,7.03830725,176.49,176.47,5.70934429]
[1754664485633,3.13,176.48,176.47,0.04364429]
[1754664485842,7.03830725,176.48,176.47,0.04364429]
[1754664486035,3.13,176.48,176.47,0.04364429]
[1754664486438,7.03830725,176.48,176.47,0.04364429]
[1754664486743,3.13,176.48,176.47,0.04364429]
[1754664487037,3.13,176.48,176.47,113.34364429]
[1754664487241,7.02830725,176.48,176.47,0.04364429]
[1754664487439,3.12,176.47,176.32,5.0]
[1754664487633,6.57879641,176.44,176.35,6.57879641]
[1754664487834,3.12,176.41,176.31,6.57879641]
[1754664488137,3.12,176.39,176.31,6.57879641]
[1754664488443,3.12,176.37,176.31,6.57879641]
[1754664488743,3.12,176.34,176.31,113.5]
[1754664488932,3.90830725,176.36,176.31,120.07879641]
[1754664489136,7.02830725,176.35,176.31,120.07879641]
[1754664489335,3.12,176.35,176.31,120.07879641]
[1754664489532,0.04352627,176.37,176.31,120.07879641]
[1754664489737,3.12,176.35,176.31,113.5]
[1754664489939,3.12,176.35,176.19,466.69934329]
[1754664489940,3.12,176.33,176.19,471.69934329]
[1754664490143,3.12,176.32,176.25,6.57879641]
[1754664490342,3.12,176.32,176.26,113.5]
[1754664490541,3.12,176.32,176.27,6.57879641]
[1754664490737,6.57879641,176.38,176.29,6.57879641]
[1754664490738,3.809e-05,176.3,176.29,6.57879641]
[1754664490942,3.809e-05,176.3,176.29,120.07879641]
[1754664491240,3.12,176.3,176.23,6.57879641]
[1754664491543,3.12,176.3,176.24,113.66]
[1754664491746,3.12,176.3,176.19,466.69934329]
[1754664491747,3.90830725,176.29,176.22,113.7]
[1754664492049,3.12,176.27,176.22,119.3737]
[1754664492246,3.12,176.25,176.22,119.3737]
[1754664492448,0.03879508,176.29,176.22,119.3737]
[1754664492449,3.12,176.28,176.24,5.6733]
[1754664492746,10.14525603,176.29,176.24,6.57879641]
[1754664493042,3.90830725,176.28,176.27,5.6724]
[1754664493250,3.12,176.35,176.27,120.27879641]
[1754664493453,7.02830725,176.35,176.33,5.6704]
[1754664493743,3.12,176.36,176.33,113.7]
[1754664494042,3.12,176.34,176.33,119.3704]
[1754664494245,0.03672575,176.36,176.33,113.7]
[1754664494451,3.12,176.4,176.35,6.57879641]
[1754664494643,3.11762544,176.4,176.34,10.02986477]
[1754664494839,3.12,176.38,176.34,10.02986477]
[1754664495046,3.12,176.41,176.34,10.02986477]
[1754664495344,3.12,176.41,176.35,113.96]
[1754664495646,3.12,176.41,176.36,0.03585242]
[1754664496149,10.02986477,176.47,176.36,0.03585242]
[1754664496150,3.12,176.42,176.36,0.03585242]
[1754664496558,3.12,176.42,176.37,10.02986477]
[1754664496847,3.12,176.41,176.37,10.07029768]
[1754664497043,3.12,176.41,176.37,15.73939768]
[1754664497245,3.12,176.42,176.37,15.69896477]
[1754664497446,3.12,176.41,176.37,10.02986477]
[1754664497752,3.12,176.47,176.37,10.07292714]
[1754664497950,4.62203822,176.53,176.4,10.02986477]
[1754664497951,3.12,176.46,176.4,10.02986477]
[1754664498252,7.02593269,176.48,176.41,113.82]
[1754664498443,3.12,176.47,176.43,10.02986477]
[1754664498949,3.12,176.5,176.44,5.6668]
[1754664499252,3.12,176.5,176.43,10.02986477]
[1754664499649,3.12,176.5,176.45,0.03727873]
[1754664499840,3.12,176.48,176.45,0.03727873]
[1754664500044,7.02593269,176.51,176.45,0.03727873]
[1754664500244,3.12,176.46,176.45,0.03727873]
[1754664501655,8.7862,176.46,176.45,0.03727873]
[1754664501953,8.7862,176.46,176.41,113.82]
[1754664501954,3.12,176.44,176.41,113.82]
[1754664502450,10.18931952,176.44,176.41,113.82]
[1754664502755,3.12,176.42,176.41,113.82]
[1754664502960,3.12,176.45,176.41,113.82]
[1754664503251,3.12,176.44,176.41,113.82]
[1754664504256,3.12,176.43,176.41,113.82]
[1754664504747,3.12,176.42,176.41,113.82]
[1754664504952,3.12,176.44,176.41,113.82]
[1754664505355,3.15999682,176.45,176.41,123.84986477]
[1754664505658,3.12,176.44,176.41,123.84986477]
[1754664505855,3.15999682,176.45,176.41,123.84986477]
[1754664506350,7.10931634,176.45,176.44,10.02986477]
[1754664506561,0.03999682,176.45,176.44,10.02986477]
[1754664507359,0.03999682,176.45,176.44,15.69676477]
[1754664507760,0.03999682,176.45,176.44,10.02986477]
[1754664507953,3.15999682,176.45,176.44,10.02986477]
[1754664508155,3.12,176.43,176.41,113.82]
[1754664508354,3.12,176.42,176.41,113.82]
[1754664508658,6.40202385,176.42,176.41,113.82]
[1754664508860,10.35371793,176.42,176.41,113.82]
[1754664509461,3.28202385,176.42,176.41,113.82]
[1754664509765,3.28202385,176.43,176.42,5.6675]
[1754664510271,3.20110083,176.43,176.41,113.82]
[1754664510469,0.03999682,176.45,176.41,113.82]
[1754664510666,0.03999682,176.45,176.43,10.02986477]
[1754664511066,0.03999682,176.45,176.44,5.6669]
[1754664511661,3.12,176.52,176.44,5.66]
[1754664511863,3.12,176.54,176.51,10.02986477]
[1754664512174,3.12,176.53,176.52,113.24]
[1754664512361,4.59499736,176.59,176.52,113.24]
[1754664512362,3.12,176.55,176.52,113.24]
[1754664512563,7.71499736,176.58,176.5,113.24]
[1754664512775,7.71499736,176.57,176.51,113.34]
[1754664512968,3.12,176.56,176.52,0.037678]
[1754664513172,7.71499736,176.56,176.49,113.32]
[1754664513363,3.12,176.55,176.49,113.32]
[1754664513564,7.71499736,176.55,176.49,113.32]
[1754664513776,3.12,176.54,176.49,113.32]
[1754664514164,3.12,176.53,176.49,113.32]
[1754664514369,0.03639383,176.56,176.49,113.32]
[1754664514370,3.12,176.51,176.49,113.32]
[1754664514670,0.03639383,176.56,176.49,113.32]
[1754664514671,4.59499736,176.54,176.49,113.32]
[1754664514873,3.12,176.53,176.49,113.32]
[1754664517784,4.59499736,176.53,176.47,113.08]
[1754664517984,3.11,176.52,176.47,113.08]
[1754664519184,4.59499736,176.53,176.47,113.08]
[1754664519491,10.02986477,176.56,176.47,113.08]
[1754664519492,3.11,176.5,176.47,113.08]
[1754664519890,4.59499736,176.54,176.47,113.08]
[1754664520193,4.59499736,176.53,176.47,113.08]
[1754664520394,3.11,176.5,176.45,113.04]
[1754664521192,3.11,176.49,176.45,113.04]
[1754664521382,3.11,176.49,176.45,118.7063]
[1754664521586,7.70499736,176.51,176.43,390.94986477]
[1754664521888,10.26019736,176.5,176.44,113.0]
[1754664522083,3.11,176.49,176.44,113.0]
[1754664522395,3.11,176.47,176.44,113.0]
[1754664522690,3.11,176.45,176.44,113.0]
[1754664522891,10.24638217,176.45,176.44,113.0]
[1754664523795,10.24577183,176.45,176.44,113.0]
[1754664523995,10.24577183,176.45,176.38,6.59632041]
[1754664524193,3.11,176.43,176.39,112.88]
[1754664524397,3.11,176.41,176.39,112.88]
[1754664524592,7.13577183,176.4,176.39,112.88]
[1754664524987,7.13577183,176.4,176.39,112.84]
[1754664525393,7.13577183,176.4,176.39,118.5085]
[1754664525590,7.13577183,176.4,176.39,112.84]
[1754664525591,10.24577183,176.4,176.39,112.84]
[1754664526484,7.13577183,176.4,176.39,112.84]
[1754664526686,10.24577183,176.4,176.39,112.84]
[1754664528495,7.13577183,176.4,176.39,112.84]
[1754664529092,7.13577183,176.4,176.39,118.5085]
[1754664530099,10.24577183,176.4,176.39,118.5085]
[1754664530293,7.13577183,176.4,176.39,118.5085]
[1754664530797,7.13963137,176.4,176.39,118.5085]
[1754664531592,7.13963137,176.4,176.39,353.5085]
[1754664533000,0.82942786,176.42,176.39,118.5]
[1754664533197,7.73292758,176.48,176.41,6.59632041]
[1754664533198,3.11,176.48,176.41,6.59632041]
[1754664533496,4.62292758,176.51,176.46,6.59632041]
[1754664533700,3.11,176.5,176.48,6.59632041]
[1754664533894,4.62292758,176.53,176.49,112.4]
[1754664534394,3.11,176.52,176.49,112.4]
[1754664534599,3.11,176.51,176.5,6.59632041]
[1754664535297,3.11,176.51,176.49,112.44216719]
[1754664535497,4.62292758,176.53,176.49,112.44216719]
[1754664535498,3.11,176.52,176.49,112.44216719]
[1754664535705,7.73292758,176.53,176.49,112.44216719]
[1754664535904,5.69,176.91,176.49,112.44216719]
[1754664535905,3.11,176.51,176.49,112.44216719]
[1754664536305,3.11,176.51,176.49,112.4]
[1754664536503,3.11,176.5,176.49,112.4]
[1754664536803,3.11,176.5,176.48,0.04256604]
[1754664536999,3.11,176.5,176.49,112.26]
[1754664537199,7.73292758,176.5,176.49,112.26]
[1754664537602,3.11,176.5,176.49,118.85632041]
[1754664537906,4.62292758,176.52,176.49,118.85632041]
[1754664538099,3.11,176.51,176.5,5.665]
[1754664538498,3.11,176.51,176.49,118.85632041]
[1754664538798,3.11,176.51,176.49,124.52152041]
[1754664539000,3.11,176.5,176.49,118.85632041]
[1754664539502,7.73292758,176.52,176.49,118.85632041]
[1754664539706,4.62292758,176.52,176.49,118.85632041]
[1754664540006,4.62292758,176.54,176.51,6.59632041]
[1754664540301,7.73292758,176.54,176.53,6.59632041]
[1754664540503,3.11,176.54,176.53,118.95632041]
[1754664541096,4.62292758,176.56,176.53,118.95632041]
[1754664541296,4.62292758,176.59,176.55,13.19264082]
[1754664541498,7.73292758,176.61,176.57,6.59632041]
[1754664541703,7.73292758,176.61,176.6,6.59632041]
[1754664541898,7.73292758,176.61,176.6,112.34]
[1754664542103,3.11,176.61,176.6,118.93632041]
[1754664543606,7.73292758,176.63,176.6,124.59812041]
[1754664543803,3.11,176.62,176.6,6.59632041]
[1754664544004,4.62292758,176.62,176.61,112.16]
[1754664544409,7.73292758,176.62,176.61,112.16]
[1754664545205,3.11,176.61,176.59,0.03676863]
[1754664545405,3.11,176.61,176.6,112.18]
[1754664545603,6.25322867,176.61,176.6,112.18]
[1754664547609,10.87615625,176.61,176.6,112.18]
[1754664548510,3.09,176.6,176.59,0.03676863]
[1754664548711,3.14322867,176.6,176.59,0.03676863]
[1754664549012,6.23322867,176.6,176.59,0.03676863]
[1754664553306,3.09,176.59,176.5,6.59632041]
[1754664553506,3.09,176.56,176.5,6.59632041]
[1754664553809,3.14322867,176.58,176.52,6.63632041]
[1754664553810,3.1086051,176.55,176.52,6.63632041]
[1754664554004,3.09,176.56,176.53,111.74]
[1754664554208,6.1986051,176.56,176.54,6.63632041]
[1754664554401,3.09,176.56,176.54,6.63632041]
[1754664554606,3.1086051,176.55,176.54,6.63632041]
[1754664555008,3.09,176.56,176.54,6.63632041]
[1754664555203,6.1986051,176.56,176.54,6.59632041]
[1754664555406,3.09,176.56,176.54,6.59632041]
[1754664556009,3.09,176.54,176.53,111.72142562]
[1754664556214,6.1986051,176.54,176.53,111.72142562]
[1754664556407,3.1086051,176.56,176.53,111.76142562]
[1754664556614,3.1086051,176.55,176.53,111.72142562]
[1754664556812,3.1086051,176.55,176.53,118.35774603]
[1754664557612,3.09,176.56,176.53,118.35774603]
[1754664557813,3.09,176.56,176.53,111.72142562]
[1754664557814,3.09,176.55,176.53,111.72142562]
[1754664558115,15.93813569,176.63,176.53,111.72142562]
[1754664558116,6.1986051,176.54,176.53,0.04142562]
[1754664558416,3.09,176.54,176.53,0.04142562]
[1754664558617,3.09,176.53,176.52,111.52]
[1754664558812,6.1986051,176.53,176.52,111.5560318]
[1754664559013,3.09,176.53,176.52,111.5560318]
[1754664559607,3.1086051,176.55,176.52,111.5560318]
[1754664559915,6.1986051,176.58,176.54,6.59632041]
[1754664560213,3.1086051,176.58,176.57,0.04]
[1754664560413,3.09,176.59,176.57,111.48]
[1754664560613,3.09,176.58,176.57,111.48]
[1754664561311,3.09,176.58,176.56,0.04218042]
[1754664561519,3.1086051,176.59,176.57,111.5]
[1754664561816,3.1086051,176.58,176.57,111.5]
[1754664562011,3.09,176.58,176.57,111.5]
[1754664562511,3.1086051,176.6,176.57,111.5]
[1754664562711,3.09,176.6,176.57,111.54]
[1754664562913,3.09,176.6,176.59,6.59632041]
[1754664563313,3.09,176.6,176.57,6.59632041]
[1754664563625,6.1951327,176.6,176.59,111.88]
[1754664563918,3.09,176.6,176.59,111.88]
[1754664564514,3.1051327,176.63,176.59,111.88]
[1754664564812,3.09,176.61,176.59,111.88]
[1754664565120,3.1051327,176.63,176.59,118.51632041]
[1754664565323,6.1951327,176.63,176.59,118.55703579]
[1754664565511,3.1051327,176.64,176.59,118.55703579]
[1754664565715,3.09,176.61,176.59,118.51703579]
[1754664565924,3.09,176.6,176.59,118.51703579]
[1754664567118,3.09,176.6,176.59,111.76071538]
[1754664569136,3.1051327,176.63,176.59,118.39703579]
[1754664569423,3.09,176.65,176.62,6.59632041]
[1754664569630,3.1051327,176.64,176.63,111.62]
[1754664569816,3.1051327,176.65,176.63,111.62]
[1754664570021,3.1051327,176.64,176.63,111.62]
[1754664570626,3.1051327,176.64,176.63,111.66]
[1754664570816,6.1951327,176.64,176.63,111.62]
[1754664572328,3.1051327,176.64,176.63,111.66]
[1754664572719,3.1051327,176.64,176.63,117.3208]
[1754664573230,3.1051327,176.64,176.63,111.66]
[1754664573933,6.1951327,176.64,176.63,111.62]
[1754664574731,10.81942906,176.64,176.63,107.3722464]
[1754664575323,6.1951327,176.64,176.63,107.3722464]
[1754664575729,3.1051327,176.64,176.62,0.03616185]
[1754664575930,3.28,176.62,176.61,111.28]
[1754664576135,11.02121463,176.62,176.61,111.28]
[1754664576424,7.74121463,176.62,176.61,111.28]
[1754664576641,3.1051327,176.62,176.61,111.28]
[1754664577022,6.3851327,176.62,176.61,111.28]
[1754664577430,11.02787199,176.62,176.61,116.9414]
[1754664577626,11.02787199,176.62,176.61,111.28]
[1754664577828,6.3851327,176.62,176.61,116.9414]
[1754664578133,6.3851327,176.62,176.61,111.28]
[1754664579023,6.37646582,176.62,176.61,111.28]
[1754664579225,12.03756582,176.62,176.61,108.84416185]
[1754664579440,3.28,176.61,176.59,111.2]
[1754664579732,6.37646582,176.6,176.59,111.18]
[1754664580126,11.02751843,176.6,176.59,111.18]
[1754664580321,11.02751843,176.6,176.54,380.6]
[1754664580527,3.28,176.56,176.55,111.14]
[1754664580727,6.37646582,176.56,176.55,111.14]
[1754664581436,3.09646582,176.56,176.55,111.17]
[1754664582027,7.12076076,176.56,176.55,111.14]
[1754664582432,7.12076076,176.56,176.55,116.8333]
[1754664584932,4.65105261,176.6,176.58,0.03]
[1754664585133,4.65697175,176.61,176.59,117.78632041]
[1754664585333,6.19869791,176.64,176.6,6.59632041]
[1754664585540,3.28,176.65,176.63,6.62632041]
[1754664585832,9.47869791,176.67,176.64,111.19]
[1754664586034,6.19869791,176.67,176.64,111.16]
[1754664586241,3.28,176.65,176.64,111.16]
[1754664586634,3.28,176.65,176.64,106.91326252]
[1754664587633,5.6598,176.66,176.59,5.6619]
[1754664587935,3.28,176.64,176.61,6.59632041]
[1754664588142,3.28,176.65,176.63,6.59632041]
[1754664588733,9.47869791,176.68,176.63,6.62632041]
[1754664588940,6.19869791,176.68,176.63,6.59632041]
[1754664589131,3.28,176.66,176.63,6.62632041]
[1754664589739,3.31611809,176.66,176.63,12.28682041]
[1754664589938,3.31611809,176.66,176.63,6.62632041]
[1754664590437,3.31611809,176.66,176.65,6.59632041]
[1754664590637,3.31611809,176.66,176.65,117.73632041]